bitfinex-derivatives/quotes_ETHF0:USTF0_20251117
["timestamp","ask_amount","ask_price","bid_price","bid_amount"]
[1763387184034,0.00480346,3124.7,3123.9,0.00298061]
[1763387184035,0.00480346,3124.7,3124.5,0.51889]
[1763387184233,0.00480346,3124.7,3124.6,3.2078]
[1763387184834,0.00480346,3124.7,3124.5,0.51889]
[1763387185034,0.00480346,3124.7,3124.3,0.51893]
[1763387185235,0.00480346,3124.7,3124.2,3.2078]
[1763387185843,3.2078,3124.4,3123.9,0.00298061]
[1763387186144,0.4439,3123.9,3123.6,0.00480346]
[1763387186440,0.4439,3123.0,3122.7,3.2078]
[1763387186640,0.4439,3123.0,3122.8,3.2078]
[1763387186844,3.6517,3123.9,3123.0,0.51914]
[1763387187037,3.6517,3123.9,3123.0,0.00358291]
[1763387187436,0.00480346,3123.8,3123.1,0.00480346]
[1763387187637,0.00480346,3123.8,3123.1,0.52391346]
[1763387187940,3.2078,3123.6,3123.1,0.00480346]
[1763387189345,3.2078,3123.2,3123.1,0.00480346]
[1763387189843,3.21260346,3123.8,3123.1,0.00480346]
[1763387190844,0.4439,3123.0,3122.4,3.2078]
[1763387191547,0.4439,3123.0,3122.8,0.51917]
[1763387191741,0.4439,3123.0,3122.8,0.52243083]
[1763387192041,3.2078,3123.4,3123.0,0.51913]
[1763387192241,0.4439,3123.2,3123.0,0.51914]
[1763387192634,0.4439,3123.2,3122.8,0.00326083]
[1763387194043,3.2078,3123.0,3122.8,0.00326083]
[1763387194746,0.4439,3123.2,3122.8,0.00326083]
[1763387194933,0.4439,3123.2,3122.8,0.52243083]
[1763387195339,0.4439,3123.2,3122.8,0.00326083]
[1763387196341,3.2078,3123.1,3122.6,0.00480346]
[1763387196945,0.4439,3121.6,3120.6,3.2078]
[1763387197144,0.4439,3120.8,3120.6,0.51954]
[1763387197449,0.44756143,3120.8,3120.6,0.52352786]
[1763387197964,0.44756143,3120.8,3120.6,0.00398786]
[1763387198242,0.44756143,3120.8,3120.4,0.00480346]
[1763387198645,3.2078,3120.5,3120.4,0.00480346]
[1763387198850,0.4439,3120.0,3119.7,3.2078]
[1763387199035,3.6517,3120.0,3119.3,3.2078]
[1763387199350,3.6517,3120.0,3119.3,3.21056136]
[1763387199551,3.2078,3119.4,3119.3,0.00276136]
[1763387200233,0.4439,3119.2,3119.0,0.00480346]
[1763387200435,0.4439,3119.2,3118.0,3.2078]
[1763387200649,3.2078,3118.2,3117.9,0.51999]
[1763387200942,3.2078,3118.2,3117.6,3.2078]
[1763387201138,3.21081066,3118.2,3117.6,3.21030498]
[1763387201336,3.21081066,3118.2,3116.6,11.539]
[1763387201337,0.4439,3117.6,3116.8,0.52016]
[1763387201538,3.2078,3117.2,3116.8,0.52016]
[1763387202046,3.2078,3117.4,3116.4,3.2078]
[1763387202244,3.2078,3117.0,3115.5,3.2078]
[1763387202442,3.2078,3117.0,3116.7,0.09361794]
[1763387202650,3.2078,3117.0,3115.1,3.2078]
[1763387202953,3.2078,3116.2,3116.0,0.5203]
[1763387203444,3.6517,3116.7,3116.3,0.52025]
[1763387203644,3.6517,3116.7,3116.5,0.52021]
[1763387203838,3.6517,3116.7,3116.5,0.52310205]
[1763387204246,3.2078,3116.7,3116.5,6.52310205]
[1763387204542,0.00301066,3118.2,3118.1,0.51996]
[1763387204744,3.6517,3119.2,3118.1,3.2078]
[1763387204948,0.4439,3117.6,3117.5,3.2078]
[1763387205654,0.44795682,3117.6,3117.5,3.2078]
[1763387205948,3.2078,3116.7,3114.0,3.2078]
[1763387206253,3.2078,3115.1,3114.6,0.52053]
[1763387206450,3.2078,3115.2,3114.0,3.2078]
[1763387206747,3.2078,3115.6,3114.9,3.2078]
[1763387207149,3.2078,3115.6,3115.1,0.52044]
[1763387207150,3.21497623,3115.6,3115.1,0.52044]
[1763387207355,3.21497623,3115.6,3115.4,0.5204]
[1763387207559,0.00717623,3115.6,3115.4,0.5204]
[1763387207745,0.00717623,3115.6,3115.3,3.2078]
[1763387207943,0.00717623,3115.6,3115.4,0.5204]
[1763387208957,3.2078,3116.4,3116.3,0.52026]
[1763387209158,3.2078,3116.4,3115.9,3.2078]
[1763387209354,3.2078,3116.4,3115.4,3.2078]
[1763387209561,3.2078,3116.4,3115.0,3.2078]
[1763387209863,3.21261162,3116.0,3115.5,3.2078]
[1763387210159,0.00481162,3116.0,3115.8,0.52033]
[1763387210554,0.44871162,3116.0,3115.7,0.52035]
[1763387210756,0.44871162,3116.0,3115.5,3.2078]
[1763387210757,0.44871162,3116.0,3115.8,0.52034]
[1763387210953,0.44871162,3116.0,3115.5,3.2078]
[1763387211152,0.44871162,3116.0,3115.6,0.52037]
[1763387211351,0.44871162,3116.0,3115.8,4e-05]
[1763387211553,3.2078,3115.9,3115.4,0.00481162]
[1763387211959,3.2078,3115.5,3115.4,0.00481162]
[1763387212159,3.2078,3115.5,3114.9,0.00410421]
[1763387212559,3.2078,3115.5,3115.3,0.52042]
[1763387212755,0.00481162,3116.0,3115.8,0.52034]
[1763387213169,0.00481162,3116.0,3115.0,3.2078]
[1763387213462,3.2078,3115.9,3115.6,0.52037]
[1763387213661,0.00481162,3116.0,3115.8,0.52034]
[1763387216468,0.00481162,3116.0,3115.9,0.52033]
[1763387216869,0.00254428,3116.4,3116.3,0.52026]
[1763387217068,0.00254428,3116.4,3116.3,3.72806]
[1763387217572,4.428e-05,3116.4,3116.3,3.72806]
[1763387217772,4.428e-05,3116.4,3116.3,44.52806]
[1763387218171,4.428e-05,3116.4,3116.3,3.2078]
[1763387218471,4.428e-05,3116.4,3116.3,3.72806]
[1763387220562,4.428e-05,3116.4,3116.3,3.2078]
[1763387220563,6.00004428,3116.4,3116.3,3.2078]
[1763387220875,6.0,3116.3,3115.3,3.2078]
[1763387221061,3.20784428,3116.4,3115.7,3.2078]
[1763387221267,3.2078,3116.0,3115.1,3.2078]
[1763387221465,3.8578,3116.0,3115.1,3.2078]
[1763387221964,3.2078,3116.0,3115.8,0.52034]
[1763387222168,3.20784428,3116.4,3115.9,0.52033]
[1763387222472,3.20784428,3116.4,3116.0,0.52031]
[1763387222669,3.20784428,3116.4,3115.9,3.2078]
[1763387222866,3.20784428,3116.4,3115.5,3.2078]
[1763387223066,3.20784428,3116.4,3116.1,0.52028]
[1763387223264,3.20784428,3116.4,3116.3,0.52026]
[1763387223470,0.4439,3118.4,3117.2,0.52011]
[1763387223471,3.2078,3117.3,3117.2,0.52011]
[1763387224270,1.10843995,3119.9,3117.2,6.0]
[1763387224471,0.65293099,3119.2,3118.5,3.2078]
[1763387224667,0.65293099,3119.2,3118.9,3.72762]
[1763387224971,0.65774261,3119.2,3118.9,3.72762]
[1763387225175,3.86554261,3119.2,3118.5,3.2078]
[1763387225380,3.86554261,3119.2,3118.5,3.72768]
[1763387225577,0.65774261,3119.2,3119.0,3.72761]
[1763387225875,0.00774261,3119.2,3119.0,3.72761]
[1763387226578,0.00774261,3119.2,3119.0,3.2078]
[1763387226778,0.00774261,3119.2,3119.0,3.7276]
[1763387227275,0.00774261,3119.2,3119.0,3.72759]
[1763387227473,0.00774261,3119.2,3119.0,3.2078]
[1763387227670,0.00774261,3119.2,3119.0,3.7276]
[1763387234180,0.00774261,3119.2,3119.1,0.51979]
[1763387234686,0.65,3120.0,3119.9,0.51966]
[1763387235193,0.65,3119.4,3119.3,0.51976]
[1763387235684,0.65373176,3119.4,3119.3,0.52348978]
[1763387236179,6.65373176,3119.4,3119.0,0.00481162]
[1763387236382,6.65373176,3119.4,3118.6,3.2078]
[1763387236383,9.2056,3119.3,3118.6,3.2078]
[1763387236681,0.65,3118.4,3118.1,3.2078]
[1763387236982,0.65,3118.4,3117.8,0.52001]
[1763387237188,0.65,3118.4,3117.8,0.52325281]
[1763387237378,0.65481162,3118.4,3117.8,0.00805443]
[1763387238176,0.65481162,3118.4,3117.9,0.51999]
[1763387238384,0.65481162,3118.4,3117.8,0.52806443]
[1763387238681,0.65481162,3118.4,3117.8,0.52804443]
[1763387239081,0.65481162,3118.4,3118.2,0.51993]
[1763387239384,9.20640001,3118.3,3116.5,40.8]
[1763387239584,0.65481162,3118.4,3117.0,0.52014]
[1763387239585,3.2078,3117.3,3117.0,0.52014]
[1763387239781,3.2078,3117.3,3116.5,3.2078]
[1763387240182,3.2078,3117.3,3116.9,0.52016]
[1763387240488,3.2078,3117.3,3117.1,0.52012]
[1763387241483,3.2078,3117.3,3116.9,0.00326537]
[1763387241688,3.2078,3117.3,3117.0,0.52014]
[1763387242379,3.2078,3117.3,3117.1,0.52012]
[1763387242584,0.65481162,3118.4,3116.9,0.00326537]
[1763387242585,3.2078,3117.7,3117.5,0.52005]
[1763387244192,3.2078,3117.7,3117.3,3.2078]
[1763387244392,3.2078,3117.7,3117.5,0.52006]
[1763387244597,3.2078,3117.7,3117.3,3.2078]
[1763387244786,3.2078,3117.7,3117.4,0.52007]
[1763387245590,3.2078,3117.7,3117.5,0.52006]
[1763387245785,0.6236,3117.6,3116.9,3.21106537]
[1763387246296,0.00481162,3118.4,3118.3,0.51993]
[1763387246495,0.00481162,3118.4,3117.9,3.2078]
[1763387246795,0.00481162,3118.4,3118.3,0.51993]
[1763387247391,0.00481162,3118.4,3118.1,0.51994]
[1763387247701,3.2078,3118.2,3116.9,0.00326537]
[1763387247891,3.2078,3117.4,3116.9,0.00326537]
[1763387248091,0.6236,3117.6,3117.1,3.72792]
[1763387248298,0.6236,3117.6,3117.2,0.52011]
[1763387248498,0.6236,3117.6,3117.1,3.2078]
[1763387248694,0.6236,3117.6,3117.5,0.52006]
[1763387248887,0.6236,3117.6,3117.1,3.2078]
[1763387249089,0.6236,3117.6,3117.4,0.52007]
[1763387249696,0.6236,3117.6,3117.5,0.52006]
[1763387249997,3.2078,3117.8,3117.7,0.52003]
[1763387250191,3.2078,3117.8,3117.1,3.2078]
[1763387250593,3.2078,3117.8,3117.4,0.52007]
[1763387251090,3.2078,3117.8,3117.5,0.52005]
[1763387251292,3.2078,3118.2,3117.7,0.52001]
[1763387251487,3.2078,3118.2,3117.5,3.2078]
[1763387251692,0.6236,3117.6,3117.5,3.72786]
[1763387251892,3.2078,3118.2,3117.5,3.2078]
[1763387252093,3.2078,3118.2,3117.6,0.52004]
[1763387252294,3.2078,3118.2,3117.5,3.2078]
[1763387252597,3.2078,3118.2,3117.9,0.51998]
[1763387252795,0.6236,3117.6,3117.5,3.2078]
[1763387252999,0.6236,3117.6,3117.3,0.52007]
[1763387253291,0.6236,3117.6,3117.1,3.2078]
[1763387253498,0.6236,3117.6,3117.2,0.52011]
[1763387253690,0.6236,3117.6,3117.1,3.2078]
[1763387253896,0.6236,3117.6,3117.2,0.52011]
[1763387254195,0.6236,3117.6,3117.1,3.2078]
[1763387254397,0.6236,3117.6,3117.1,3.72792]
[1763387254899,3.2078,3117.3,3116.3,3.2078]
[1763387255096,3.2078,3116.7,3116.3,3.2078]
[1763387255296,3.2078,3116.7,3115.6,0.52037]
[1763387255593,3.2078,3116.1,3115.8,0.52033]
[1763387255798,3.2078,3116.1,3115.9,0.52032]
[1763387255989,3.21164644,3116.1,3114.8,3.2078]
[1763387256190,3.2078,3115.7,3114.8,3.2078]
[1763387256391,3.2078,3115.2,3114.9,0.52049]
[1763387256595,3.2078,3115.2,3114.6,0.649]
[1763387256799,3.2078,3114.8,3114.6,1.16954]
[1763387256992,3.2078,3114.8,3114.6,0.65126729]
[1763387257301,0.00481162,3115.4,3115.3,0.52043]
[1763387258302,1.162e-05,3115.4,3115.3,0.52043]
[1763387258498,0.00384644,3116.1,3116.0,0.52031]
[1763387259896,0.00384644,3116.1,3116.0,10.38991]
[1763387260107,0.00481162,3116.4,3116.3,0.52026]
[1763387261099,0.00726139,3116.4,3116.3,0.52026]
[1763387262003,0.00726139,3116.4,3115.7,0.00481162]
[1763387262004,3.21506139,3116.4,3115.7,0.00481162]
[1763387262194,3.21506139,3116.4,3116.1,0.52029]
[1763387262501,0.00726139,3116.4,3116.3,0.52026]
[1763387263700,0.52750139,3116.4,3116.3,0.52026]
[1763387264009,0.00726139,3116.4,3116.3,0.52026]
[1763387264302,0.00726139,3116.4,3115.8,3.2078]
[1763387264507,0.00726139,3116.4,3116.3,0.52026]
[1763387266207,0.00726139,3116.4,3116.2,0.52026]
[1763387266406,0.00726139,3116.4,3116.3,0.52026]
[1763387268397,0.00726139,3116.4,3116.3,3.72806]
[1763387268713,3.2078,3117.3,3116.4,0.6618]
[1763387269111,3.2078,3117.3,3116.9,0.52014]
[1763387269505,3.2078,3117.3,3116.4,0.6618]
[1763387269707,0.00481162,3117.2,3116.7,0.52019]
[1763387270107,0.00481162,3117.2,3116.8,0.52016]
[1763387270512,0.00481162,3117.2,3116.4,0.66497413]
[1763387270708,0.00481162,3117.2,3116.8,0.52016]
[1763387271108,0.00481162,3117.2,3116.9,0.52016]
[1763387271310,0.52492162,3117.2,3117.0,0.52014]
[1763387271516,0.52013,3117.1,3117.0,0.52014]
[1763387272807,0.00481162,3117.2,3116.4,0.66497413]
[1763387272808,0.00481162,3117.2,3117.1,0.52013]
[1763387273514,0.00481162,3117.2,3117.1,1.16893]
[1763387273717,0.00481162,3117.2,3117.1,4.37673]
[1763387274221,5.0,3118.0,3117.9,0.51999]
[1763387274515,3.2078,3119.0,3117.9,3.2078]
[1763387274723,3.2078,3119.0,3118.6,3.2078]
[1763387274918,3.2078,3119.4,3118.6,3.2078]
[1763387275214,0.00481162,3119.3,3119.2,3.2078]
[1763387278123,0.00401875,3119.4,3119.2,9.5787]
[1763387278708,0.00401875,3119.4,3119.2,3.5787]
[1763387278921,3.2078,3120.3,3119.2,6.7843]
[1763387279115,3.2078,3120.3,3119.8,3.2078]
[1763387279322,0.6236,3121.3,3118.8,3.2078]
[1763387279323,0.51973,3119.5,3118.8,3.2078]
[1763387279519,3.2078,3119.5,3118.8,3.2078]
[1763387279722,0.51969,3119.7,3118.8,3.2078]
[1763387280019,0.51978,3119.2,3118.9,3.2078]
[1763387280217,0.00331994,3119.5,3118.9,3.2078]
[1763387280218,3.21111994,3119.5,3118.9,3.2078]
[1763387280714,0.51977,3119.3,3118.9,3.2078]
[1763387280916,0.5198,3119.1,3118.9,3.2078]
[1763387281115,3.21111994,3119.5,3118.9,3.2078]
[1763387281116,0.51976,3119.3,3118.9,3.2078]
[1763387281322,3.73084994,3119.5,3118.9,3.2078]
[1763387281623,3.21111994,3119.5,3118.9,3.2078]
[1763387282220,0.51984,3118.8,3118.7,0.00481162]
[1763387282418,3.2078,3119.0,3118.1,3.2078]
[1763387282616,0.51984,3118.8,3118.1,3.2078]
[1763387282822,3.72762,3119.0,3118.5,3.2078]
[1763387283016,0.51983,3118.9,3118.5,3.2078]
[1763387283528,0.51986,3118.7,3118.5,3.21176877]
[1763387283720,0.51988,3118.6,3118.5,3.21176877]
[1763387283922,0.51988,3118.6,3118.5,0.00396877]
[1763387284120,3.21261162,3119.0,3118.5,0.00396877]
[1763387284316,0.51986,3118.7,3118.5,0.00396877]
[1763387284919,0.639,3118.5,3117.7,3.2078]
[1763387285219,0.639,3117.8,3117.1,3.2078]
[1763387285618,0.52018,3116.8,3116.7,3.2078]
[1763387285820,0.639,3117.1,3116.2,3.2078]
[1763387286229,0.52018,3116.8,3116.3,0.00481162]
[1763387286424,0.00481162,3117.0,3116.3,0.00481162]
[1763387286621,0.00481162,3117.0,3116.6,3.2078]
[1763387288328,3.2078,3118.0,3116.6,3.2078]
[1763387288329,3.2078,3118.0,3116.8,0.5099]
[1763387288530,3.2078,3118.0,3117.5,3.2078]
[1763387288727,3.2078,3118.0,3116.8,0.5099]
[1763387288728,0.52003,3117.7,3117.1,3.2078]
[1763387288930,0.52,3117.9,3117.6,3.2078]
[1763387289134,0.51998,3118.0,3117.6,3.2078]
[1763387289332,0.52231888,3118.0,3117.2,3.2078]
[1763387289531,0.00233888,3118.0,3117.2,3.2078]
[1763387289734,0.00233888,3118.0,3117.6,3.2078]
[1763387290233,0.00233888,3118.0,3117.6,3.7848]
[1763387290432,3.2078,3118.8,3117.6,9.7848]
[1763387290628,0.639,3120.0,3118.1,3.2078]
[1763387290629,3.8468,3119.2,3118.1,3.2078]
[1763387290825,0.51981,3119.0,3118.1,3.2078]
[1763387291130,0.5198,3119.1,3118.1,3.2078]
[1763387291329,0.5198,3119.1,3118.6,3.2078]
[1763387291330,0.00330446,3119.1,3118.6,3.2078]
[1763387291521,0.00481162,3118.9,3118.6,3.21177111]
[1763387292329,0.51984,3118.8,3118.6,3.21177111]
[1763387292531,0.00481162,3118.9,3118.6,3.21177111]
[1763387293234,0.00481162,3118.9,3118.6,0.00397111]
[1763387295146,1.162e-05,3118.9,3118.6,0.00397111]
[1763387295639,3.2078,3119.6,3118.6,0.00397111]
[1763387295941,3.2078,3119.6,3119.2,3.2078]
[1763387296141,0.639,3120.0,3119.2,3.2078]
[1763387296340,0.5197,3119.7,3119.2,3.2078]
[1763387296634,0.51971,3119.6,3119.2,3.2078]
[1763387296942,0.51976,3119.3,3119.2,3.2078]
[1763387297144,0.51972,3119.6,3119.2,3.2078]
[1763387297438,0.0040548,3119.7,3119.2,3.2078]
[1763387298034,0.5237448,3119.7,3119.2,3.2078]
[1763387298228,0.0040548,3119.7,3119.2,3.2078]
[1763387298829,0.0040548,3119.7,3119.2,3.6414]
[1763387299041,0.0040548,3119.7,3119.6,3.2078]
[1763387303759,0.5237448,3119.7,3119.6,3.2078]
[1763387304850,0.0040548,3119.7,3119.6,3.2078]
[1763387305049,0.0040548,3119.7,3119.2,3.2078]
[1763387305958,0.51979,3119.2,3118.8,3.2078]
[1763387306158,1.55763,3118.9,3118.8,3.2078]
[1763387306360,0.51986,3118.7,3118.6,0.00397111]
[1763387306560,0.51983,3119.0,3118.6,0.00397111]
[1763387306756,0.51984,3118.9,3118.6,0.00397111]
[1763387306950,0.51984,3118.8,3118.6,0.00397111]
[1763387307153,0.51983,3119.0,3118.6,0.00397111]
[1763387307352,0.51984,3118.9,3118.6,0.00397111]
[1763387308354,4.38739,3119.2,3118.6,0.00397111]
[1763387308760,0.51982,3119.0,3118.6,0.00397111]
[1763387308962,3.8676,3119.2,3118.8,3.2078]
[1763387309262,0.51979,3119.1,3118.8,3.2078]
[1763387309447,0.51981,3119.0,3118.6,0.00397111]
[1763387309649,0.51985,3118.9,3118.6,0.00397111]
[1763387310054,0.51981,3119.0,3118.6,0.00397111]
[1763387310452,0.51984,3118.9,3118.6,0.00397111]
[1763387310956,0.51986,3118.8,3118.6,0.00397111]
[1763387311347,3.8676,3119.2,3118.6,0.00397111]
[1763387311554,3.2078,3119.2,3119.1,1.0208]
[1763387311753,3.2078,3119.6,3119.5,1.0208]
[1763387313464,0.0040548,3119.7,3119.6,1.0208]
[1763387313664,0.0040548,3119.7,3119.6,4.2286]
[1763387315555,3.7315548,3119.7,3118.6,3.21177111]
[1763387315760,3.2118548,3119.7,3118.6,3.21177111]
[1763387316068,3.2118548,3119.7,3119.0,3.2078]
[1763387316364,0.51978,3119.2,3119.0,3.2078]
[1763387316865,0.51979,3119.1,3119.0,3.2078]
[1763387317069,0.6598,3119.4,3118.6,3.21177111]
[1763387317365,0.5198,3119.1,3118.6,3.21177111]
[1763387317765,0.6598,3119.4,3119.0,3.2078]
[1763387317960,1.17955,3119.4,3119.0,3.2078]
[1763387318368,0.6598,3119.4,3119.0,3.2078]
[1763387318557,0.51976,3119.3,3119.0,3.2078]
[1763387319162,3.72759,3119.2,3118.6,0.00397111]
[1763387319361,0.51982,3119.0,3118.6,0.00397111]
[1763387319562,1.0378,3118.7,3118.6,0.00397111]
[1763387319761,0.51985,3118.8,3118.6,0.00397111]
[1763387319962,3.2078,3119.2,3118.6,0.00397111]
[1763387320162,0.51986,3118.8,3118.6,0.00397111]
[1763387320359,0.51979,3119.1,3118.6,0.00397111]
[1763387320559,3.2078,3119.2,3118.6,0.00397111]
[1763387320963,3.72758,3119.2,3118.6,0.00397111]
[1763387321163,3.2078,3119.2,3118.6,0.00397111]
[1763387321360,0.0040548,3119.7,3118.6,0.00397111]
[1763387321361,0.51974,3119.5,3118.9,3.2078]
[1763387321566,3.72751,3119.6,3118.9,3.2078]
[1763387321868,3.2078,3119.6,3118.9,3.2078]
[1763387322063,0.51974,3119.5,3118.9,3.2078]
[1763387322266,3.2078,3119.6,3118.9,3.2078]
[1763387322958,3.72752,3119.6,3118.9,3.2078]
[1763387323154,3.2078,3119.6,3118.9,3.2078]
[1763387325062,0.51976,3119.4,3118.9,3.2078]
[1763387325262,0.51973,3119.5,3118.9,3.2078]
[1763387325469,3.2078,3119.6,3118.9,3.2078]
[1763387327568,0.0040548,3119.7,3119.6,1.0208]
[1763387327964,0.0040548,3119.7,3119.3,3.2078]
[1763387328674,0.5237448,3119.7,3119.3,3.2078]
[1763387329366,1.6976,3119.4,3119.3,3.2078]
[1763387329570,0.51971,3119.6,3118.9,3.2078]
[1763387329870,0.0040548,3119.7,3119.3,3.2078]
[1763387330063,0.0040548,3119.7,3119.6,1.0208]
[1763387332671,3.2078,3121.4,3119.7,10.2159]
[1763387332973,0.51944,3121.3,3120.3,3.2078]
[1763387333169,3.2078,3121.4,3120.3,3.2078]
[1763387333379,3.72721,3121.4,3120.7,3.2078]
[1763387333572,3.72721,3121.4,3120.7,3.21261162]
[1763387333573,3.21371712,3121.4,3120.7,3.21261162]
[1763387333772,3.73312712,3121.4,3120.7,3.21261162]
[1763387333968,0.51943,3121.3,3120.7,3.21261162]
[1763387334169,3.73313712,3121.4,3120.7,3.21261162]
[1763387334471,3.21371712,3121.4,3120.7,3.21261162]
[1763387334670,3.21371712,3121.4,3121.3,1.0111]
[1763387334871,0.00591712,3121.4,3121.3,4.22257906]
[1763387335577,0.00591712,3121.4,3121.3,1.01477906]
[1763387335877,1.03151712,3121.4,3121.3,0.00367906]
[1763387336470,0.51948,3121.0,3120.9,3.2078]
[1763387336671,13.0408,3121.3,3119.4,0.2191]
[1763387336968,3.2078,3119.7,3119.3,3.2078]
[1763387337371,0.51972,3119.6,3119.3,3.2078]
[1763387337572,3.2078,3119.7,3119.3,3.2078]
[1763387337573,3.2078,3119.7,3119.3,3.21155711]
[1763387338167,3.7275,3119.7,3119.3,3.21155711]
[1763387338781,0.51971,3119.6,3119.3,3.21155711]
[1763387339283,0.51974,3119.4,3119.3,3.21155711]
[1763387339476,0.51972,3119.6,3119.3,3.21155711]
[1763387339663,0.51974,3119.4,3119.3,3.21155711]
[1763387339865,0.51974,3119.4,3119.3,0.00375711]
[1763387340381,3.2078,3119.7,3119.3,0.00375711]
[1763387340680,0.51974,3119.4,3119.3,0.00375711]
[1763387340875,0.51992,3118.4,3117.6,3.2078]
[1763387341175,3.2078,3118.4,3117.6,3.2078]
[1763387341372,0.52014,3117.1,3116.4,0.634]
[1763387341570,3.2078,3116.9,3116.4,0.634]
[1763387341776,3.07942567,3117.0,3116.4,0.634]
[1763387341978,0.52004,3117.7,3116.8,3.2078]
[1763387342274,3.2078,3117.9,3116.8,3.2078]
[1763387342475,3.72787,3117.5,3116.8,3.2078]
[1763387342674,0.52008,3117.4,3116.8,3.2078]
[1763387342875,0.00705992,3117.4,3116.8,3.2078]
[1763387343374,3.8368,3117.1,3116.4,0.00253862]
[1763387343575,3.2078,3116.6,3116.4,0.00253862]
[1763387343775,2.49883946,3116.6,3116.4,0.00253862]
[1763387344670,3.2078,3117.0,3116.4,0.00253862]
[1763387344874,3.21485992,3117.4,3116.4,0.63653862]
[1763387345476,3.21485992,3117.4,3116.7,3.2078]
[1763387347675,0.00705992,3117.4,3117.1,3.2078]
[1763387348180,0.629,3119.2,3117.2,6.0]
[1763387348181,3.2078,3118.2,3117.2,6.0]
[1763387348477,3.2078,3118.2,3117.7,3.2078]
[1763387348881,3.2078,3118.8,3117.8,0.634]
[1763387349181,0.00296436,3118.6,3118.0,0.00481162]
[1763387349382,0.00296436,3118.6,3118.1,3.2078]
[1763387349582,0.629,3118.5,3118.0,0.00481162]
[1763387349776,3.2078,3118.2,3118.0,0.00481162]
[1763387350383,3.2078,3118.2,3116.5,40.8]
[1763387350384,6.0,3118.1,3116.8,3.2078]
[1763387350584,3.2078,3117.4,3116.8,3.2078]
[1763387351480,3.2078,3117.4,3116.8,0.00481162]
[1763387351685,3.2078,3117.0,3116.4,0.00253862]
[1763387352775,3.21261162,3117.0,3116.4,0.00735024]
[1763387353278,3.21261162,3117.0,3116.5,3.2078]
[1763387355788,3.2078,3116.6,3116.4,0.00735024]
[1763387356084,3.21040234,3116.6,3116.4,0.00735024]
[1763387357687,3.21040234,3116.6,3115.7,3.2078]
[1763387358086,0.6057,3115.0,3114.5,3.8568]
[1763387358488,3.2078,3114.9,3114.5,3.8568]
[1763387358693,3.2078,3114.9,3114.5,3.85909371]
[1763387358888,3.2078,3114.9,3114.5,0.65129371]
[1763387359182,9.2078,3114.9,3114.5,0.65129371]
[1763387359380,9.2078,3114.9,3113.6,3.2078]
[1763387359583,3.2078,3114.3,3113.6,3.2078]
[1763387359977,3.2078,3114.9,3113.6,3.835]
[1763387360177,3.2078,3114.9,3114.1,3.2078]
[1763387360382,3.21021673,3114.9,3114.2,0.00481162]
[1763387361587,0.00241673,3114.9,3114.6,3.2078]
[1763387362290,3.2078,3114.8,3114.2,0.00481162]
[1763387362984,0.00241673,3114.9,3114.2,0.00481162]
[1763387362985,3.5307,3114.4,3114.2,0.00481162]
[1763387364183,3.2078,3114.4,3114.2,0.00481162]
[1763387364386,0.00241673,3114.9,3114.3,0.6133]
[1763387364580,0.00241673,3114.9,3114.8,3.2078]
[1763387364991,0.00241673,3114.9,3114.8,50.0078]
[1763387365184,3.2078,3116.0,3115.0,0.6133]
[1763387365586,3.2078,3116.0,3115.2,3.2078]
[1763387365789,3.72811,3116.0,3115.8,0.52033]
[1763387366084,3.72811,3116.0,3115.2,3.2078]
[1763387366085,3.21179954,3116.0,3115.2,3.2078]
[1763387366595,0.00399954,3116.0,3115.7,3.2078]
[1763387367089,3.2078,3115.8,3115.0,0.6133]
[1763387367294,3.2078,3115.5,3114.7,3.2078]
[1763387367494,3.2078,3115.5,3114.3,0.6133]
[1763387367495,3.52529954,3116.0,3115.2,3.2078]
[1763387368890,3.21179954,3116.0,3115.2,3.2078]
[1763387369084,0.00399954,3116.0,3115.2,3.2078]
[1763387369388,0.00399954,3116.0,3115.6,3.2078]
[1763387369989,0.00399954,3116.0,3115.7,0.6133]
[1763387370193,3.21179954,3116.0,3115.2,3.2078]
[1763387371195,3.2078,3115.5,3114.8,3.2078]
[1763387371689,0.3135,3115.0,3114.4,3.2078]
[1763387371880,3.2078,3115.1,3114.4,3.2078]
[1763387372290,3.2078,3115.5,3114.4,3.2078]
[1763387372485,3.2078,3115.1,3114.4,3.2078]
[1763387372892,3.2078,3115.5,3114.5,3.2078]
[1763387373194,3.2078,3115.5,3114.3,0.6133]
[1763387373387,3.2078,3115.1,3114.6,3.2078]
[1763387373588,3.2078,3115.5,3114.6,3.2078]
[1763387373894,0.627,3115.0,3114.2,3.21261162]
[1763387374394,3.8348,3115.0,3114.2,3.21261162]
[1763387374595,3.2078,3114.6,3114.2,3.21261162]
[1763387375891,0.3135,3114.3,3114.2,0.00481162]
[1763387376389,0.3135,3114.3,3114.1,1.74e-06]
[1763387376584,3.2078,3114.2,3114.1,1.74e-06]
[1763387378898,9.2078,3114.2,3114.1,1.74e-06]
[1763387379396,9.92289152,3114.2,3114.1,1.74e-06]
[1763387380889,3.92289152,3114.2,3114.1,1.74e-06]
[1763387381188,3.2078,3114.2,3114.1,1.74e-06]
[1763387382198,3.2078,3114.2,3113.1,2.73867]
[1763387382404,3.2078,3113.2,3111.9,3.2078]
[1763387382702,3.2078,3113.0,3112.9,0.6133]
[1763387382892,3.2078,3113.4,3113.3,0.52076]
[1763387383095,3.2078,3113.8,3113.6,0.5207]
[1763387383294,3.21193879,3113.8,3113.6,0.00271763]
[1763387383499,3.21193879,3113.8,3113.6,0.52342763]
[1763387383898,3.21193879,3113.8,3113.6,0.00271763]
[1763387385206,0.627,3113.6,3112.4,3.2078]
[1763387385402,3.2078,3113.0,3112.4,3.2078]
[1763387385613,0.627,3112.9,3112.7,0.52086]
[1763387386107,6.71534487,3112.8,3111.0,3.2078]
[1763387386409,0.627,3112.9,3111.4,0.52107]
[1763387386410,3.2078,3111.8,3111.4,0.52107]
[1763387386608,3.2078,3111.8,3111.0,3.2078]
[1763387386810,3.2078,3111.8,3111.1,0.52112]
[1763387387111,3.2078,3111.3,3111.1,0.00248131]